bitfinex-derivatives/quotes_BTCF0:USTF0_20250724
["timestamp","ask_amount","ask_price","bid_price","bid_amount"]
[1753366592454,0.6649082,118140.0,118130.0,0.93481049]
[1753366592647,0.8367082,118140.0,118130.0,0.4833925]
[1753366592856,0.8367082,118140.0,118130.0,1.1048725]
[1753366593050,1.1975082,118140.0,118130.0,1.1046325]
[1753366593252,1.1975082,118140.0,118130.0,1.0720125]
[1753366593752,1.1975082,118140.0,118130.0,1.49543049]
[1753366593952,0.66751,118140.0,118130.0,1.49543049]
[1753366594347,0.55588,118140.0,118130.0,1.52343049]
[1753366594854,0.36665,118140.0,118130.0,1.88423049]
[1753366595153,0.321,118140.0,118130.0,1.88423049]
[1753366595452,0.071,118140.0,118130.0,1.88423049]
[1753366595647,0.04565,118160.0,118150.0,0.3151038]
[1753366595852,0.35565,118160.0,118150.0,2.33679978]
[1753366596043,0.35565,118160.0,118150.0,2.69759978]
[1753366596246,0.04565,118170.0,118160.0,0.5088295]
[1753366596543,0.02,118170.0,118160.0,1.29304749]
[1753366596748,0.04565,118180.0,118170.0,0.3628952]
[1753366597051,0.37565,118180.0,118170.0,1.76743319]
[1753366597252,0.37565,118180.0,118170.0,1.40663319]
[1753366597647,0.37565,118180.0,118170.0,1.76743319]
[1753366597849,0.37565,118180.0,118170.0,1.40663319]
[1753366598651,0.37565,118180.0,118170.0,1.76743319]
[1753366599647,0.37565,118180.0,118170.0,1.76843319]
[1753366605456,0.33,118180.0,118170.0,1.76843319]
[1753366605861,0.14335,118200.0,118190.0,0.5087866]
[1753366606157,0.89082403,118200.0,118190.0,1.54936459]
[1753366606360,0.95449403,118200.0,118190.0,1.54936459]
[1753366606561,1.00245403,118200.0,118190.0,1.52136459]
[1753366606761,1.36325403,118200.0,118190.0,1.0979066]
[1753366606961,1.00245403,118200.0,118190.0,1.0979066]
[1753366607158,1.00245403,118200.0,118190.0,1.52132459]
[1753366607863,1.36325403,118200.0,118190.0,1.52132459]
[1753366608063,1.36325403,118200.0,118190.0,1.0979066]
[1753366608258,1.36525403,118200.0,118190.0,1.0652866]
[1753366608460,1.36825403,118200.0,118190.0,1.0662866]
[1753366608664,1.00745403,118200.0,118190.0,1.0662866]
[1753366608962,1.19914173,118200.0,118190.0,1.0662866]
[1753366609156,1.19914173,118200.0,118190.0,1.0654866]
[1753366609553,1.36825403,118200.0,118190.0,1.0654866]
[1753366609769,1.36825403,118200.0,118190.0,0.4491666]
[1753366609967,1.36825403,118200.0,118190.0,0.8996666]
[1753366611170,1.79167202,118200.0,118190.0,0.1701266]
[1753366611467,2.40771202,118200.0,118190.0,0.1701266]
[1753366611970,1.98429403,118200.0,118190.0,0.1701266]
[1753366612466,1.36825403,118200.0,118190.0,0.1701266]
[1753366612663,0.6002409,118180.0,118170.0,0.0845754]
[1753366612865,1.3210409,118180.0,118170.0,0.0845754]
[1753366613064,1.19477828,118180.0,118170.0,0.5653809]
[1753366613264,0.83397828,118180.0,118170.0,0.98879889]
[1753366613768,0.83397828,118180.0,118170.0,1.60479889]
[1753366614968,0.83397828,118180.0,118170.0,1.99459889]
[1753366615164,0.53311828,118180.0,118170.0,1.99459889]
[1753366615763,0.66217828,118180.0,118170.0,1.99459889]
[1753366615963,0.72234828,118180.0,118170.0,1.99459889]
[1753366617168,0.04756,118190.0,118180.0,0.3136109]
[1753366617462,0.37756,118190.0,118180.0,1.28787889]
[1753366618569,0.37856,118190.0,118180.0,1.28787889]
[1753366618971,0.331,118190.0,118180.0,1.28787889]
[1753366619162,0.071,118190.0,118180.0,1.28787889]
[1753366619362,0.311,118190.0,118180.0,1.28787889]
[1753366621571,0.36056,118190.0,118180.0,1.90383889]
[1753366622371,0.18056,118190.0,118180.0,1.90383889]
[1753366622566,0.05056,118190.0,118180.0,1.90383889]
[1753366622768,0.42056,118190.0,118180.0,1.90383889]
[1753366622967,0.16056,118190.0,118180.0,1.90383889]
[1753366623272,0.36056,118190.0,118180.0,1.97164632]
[1753366623468,0.39225,118190.0,118180.0,1.54303889]
[1753366623675,0.85099589,118190.0,118180.0,1.0906209]
[1753366623866,0.85099589,118190.0,118180.0,1.0905809]
[1753366624262,1.21179589,118190.0,118180.0,0.04928]
[1753366624468,0.5185809,118180.0,118170.0,1.0599226]
[1753366624668,0.8585809,118180.0,118170.0,1.0599226]
[1753366625273,0.68944,118180.0,118170.0,1.48334059]
[1753366625473,0.68944,118180.0,118170.0,1.84414059]
[1753366625673,0.68944,118180.0,118170.0,1.48334059]
[1753366625875,0.8585809,118180.0,118170.0,1.48334059]
[1753366626076,0.8595809,118180.0,118170.0,1.48334059]
[1753366626473,0.69044,118180.0,118170.0,1.48334059]
[1753366626776,0.69044,118180.0,118170.0,1.87314059]
[1753366627079,0.69044,118180.0,118170.0,1.4497226]
[1753366627275,0.62677,118180.0,118170.0,1.87314059]
[1753366628273,0.04856,118180.0,118170.0,1.87314059]
[1753366628576,0.351,118180.0,118170.0,1.87314059]
[1753366629079,0.39856,118180.0,118170.0,1.51234059]
[1753366629276,0.5677009,118180.0,118170.0,1.0889226]
[1753366629574,0.5677009,118180.0,118170.0,1.48334059]
[1753366629575,0.8695809,118180.0,118170.0,1.48334059]
[1753366629777,0.8695809,118180.0,118170.0,1.0599226]
[1753366630177,1.2303809,118180.0,118170.0,1.0599226]
[1753366630378,0.3576352,118170.0,118160.0,0.38087441]
[1753366630580,1.2293952,118170.0,118160.0,0.48122286]
[1753366630781,1.35638486,118170.0,118160.0,0.48122286]
[1753366631473,1.35638486,118170.0,118160.0,0.4640716]
[1753366631882,1.37580112,118170.0,118160.0,0.4650716]
[1753366632072,1.35638486,118170.0,118160.0,0.4650716]
[1753366633480,1.35638486,118170.0,118160.0,0.2547416]
[1753366634073,1.77980285,118170.0,118160.0,0.1701695]
[1753366634479,1.37578715,118170.0,118160.0,0.1701695]
[1753366634982,1.37578715,118170.0,118160.0,0.1691695]
[1753366635168,0.2167438,118150.0,118140.0,0.4148339]
[1753366635372,1.1994238,118150.0,118140.0,0.2960827]
[1753366635575,0.8386238,118150.0,118140.0,0.2960827]
[1753366635776,1.28528,118150.0,118140.0,0.57666239]
[1753366636079,1.4544638,118150.0,118140.0,0.57666239]
[1753366636282,1.28528,118150.0,118140.0,1.00008038]
[1753366636579,1.28628,118150.0,118140.0,1.00008038]
[1753366636782,0.55704,118150.0,118140.0,1.38988038]
[1753366636983,0.04856,118150.0,118140.0,1.38988038]
[1753366637172,0.37856,118150.0,118140.0,1.38988038]
[1753366637397,0.68044,118150.0,118140.0,1.36088038]
[1753366637981,0.68044,118150.0,118140.0,1.38988038]
[1753366639287,0.56704,118150.0,118140.0,1.45058193]
[1753366639584,0.021,118150.0,118140.0,1.45058193]
[1753366639777,0.09605,118170.0,118160.0,0.3136395]
[1753366640083,0.38,118170.0,118160.0,1.92329749]
[1753366640287,0.38,118170.0,118160.0,1.56249749]
[1753366640482,0.38,118170.0,118160.0,1.92329749]
[1753366640984,0.38,118170.0,118160.0,1.98404494]
[1753366641184,0.38,118170.0,118160.0,1.92329749]
[1753366641377,0.50574,118170.0,118160.0,1.1390795]
[1753366641577,1.2118352,118170.0,118160.0,1.0905695]
[1753366641879,0.72944,118170.0,118160.0,1.0905695]
[1753366642085,0.72944,118170.0,118160.0,1.4513695]
[1753366642275,0.72944,118170.0,118160.0,1.92329749]
[1753366642486,0.72944,118170.0,118160.0,1.92429749]
[1753366642982,0.72944,118170.0,118160.0,1.92529749]
[1753366643382,0.72944,118170.0,118160.0,1.92629749]
[1753366643587,0.61604,118170.0,118160.0,1.92629749]
[1753366643886,0.45925,118170.0,118160.0,1.92629749]
[1753366645080,0.8985952,118170.0,118160.0,1.26190749]
[1753366645285,1.2593952,118170.0,118160.0,0.4776895]
[1753366645483,2.29865319,118170.0,118160.0,0.003]
[1753366645789,2.42528794,118170.0,118160.0,0.1721695]
[1753366646691,2.42628794,118170.0,118160.0,0.1701695]
[1753366646889,2.42628794,118170.0,118160.0,0.1691695]
[1753366647092,2.00386995,118170.0,118160.0,0.1691695]
[1753366647990,2.08845285,118170.0,118160.0,0.1691695]
[1753366648193,2.08845285,118170.0,118150.0,0.2960542]
[1753366648194,0.3064195,118160.0,118150.0,0.2960542]
[1753366648393,1.2421695,118160.0,118150.0,0.2114652]
[1753366648697,1.36872309,118160.0,118150.0,0.2114652]
[1753366649094,0.3064338,118150.0,118140.0,0.93033065]
[1753366649294,1.2421838,118150.0,118140.0,0.93033065]
[1753366649595,1.2421838,118150.0,118140.0,0.31453065]
[1753366649897,1.2421838,118150.0,118140.0,0.95074864]
[1753366650097,1.2421838,118150.0,118140.0,1.01424864]
[1753366650294,0.8813838,118150.0,118140.0,0.59083065]
[1753366650498,0.7122,118150.0,118140.0,0.59083065]
[1753366650807,0.8813838,118150.0,118140.0,1.04773864]
[1753366651203,0.7122,118150.0,118140.0,1.04773864]
[1753366652204,0.8813838,118150.0,118140.0,1.04673864]
[1753366652410,0.7122,118150.0,118140.0,1.04673864]
[1753366652707,0.8813838,118150.0,118140.0,0.62332065]
[1753366653710,0.8813838,118150.0,118140.0,0.5625732]
[1753366654108,0.8813838,118150.0,118140.0,0.2547832]
[1753366654707,0.7122,118150.0,118140.0,0.5625732]
[1753366655010,0.8813838,118150.0,118140.0,0.98599119]
[1753366655900,1.2421838,118150.0,118140.0,0.98599119]
[1753366656305,1.2421838,118150.0,118140.0,0.5310832]
[1753366656500,1.2421838,118150.0,118140.0,0.1701869]
[1753366656968,1.2421838,118150.0,118140.0,0.001]
[1753366657108,0.5114125,118130.0,118120.0,0.06074745]
[1753366657315,2.27131049,118130.0,118120.0,0.06074745]
[1753366657506,2.27131049,118130.0,118110.0,0.31459365]
[1753366657507,0.3064768,118120.0,118110.0,0.31459365]
[1753366657706,0.8514268,118120.0,118110.0,0.31459365]
[1753366658014,0.8514268,118120.0,118110.0,0.95081164]
[1753366658514,0.8514268,118120.0,118110.0,0.52739365]
[1753366659608,0.8534268,118120.0,118110.0,0.59089365]
[1753366660410,1.34160619,118120.0,118110.0,0.27228415]
[1753366661408,1.34260619,118120.0,118110.0,0.06074745]
[1753366661613,1.76602418,118120.0,118110.0,0.1692411]
[1753366662121,1.41007164,118120.0,118110.0,0.1692411]
[1753366662412,0.2471311,118110.0,118100.0,0.2538675]
[1753366662614,1.8679211,118110.0,118100.0,0.2538675]
[1753366663011,1.99422267,118110.0,118100.0,0.2115556]
[1753366663313,1.82498157,118110.0,118090.0,0.9084116]
[1753366663518,0.8722555,118100.0,118090.0,1.1246887]
[1753366663719,1.1822555,118100.0,118090.0,0.5090087]
[1753366664020,1.1822555,118100.0,118090.0,0.2538915]
[1753366664519,1.73214632,118100.0,118090.0,0.2548915]
[1753366664721,1.73214632,118100.0,118090.0,0.2125743]
[1753366665020,1.73214632,118100.0,118090.0,0.001]
[1753366665223,1.30872833,118100.0,118090.0,0.1702698]
[1753366665514,1.30872833,118100.0,118090.0,0.001]
[1753366665914,1.30872833,118100.0,118090.0,0.1702698]
[1753366666422,1.30872833,118100.0,118090.0,0.1712698]
[1753366667321,1.92444833,118100.0,118090.0,0.1712698]
[1753366671824,1.92444833,118100.0,118090.0,0.002]
[1753366672321,0.5114697,118090.0,118080.0,0.2539132]
[1753366672529,1.1822697,118090.0,118080.0,0.2539132]
[1753366672826,1.30914983,118090.0,118080.0,0.2115924]
[1753366674025,1.30914983,118090.0,118080.0,0.1692731]
[1753366674227,1.73356782,118090.0,118080.0,0.1692731]
[1753366674527,1.31014983,118090.0,118080.0,0.1692731]
[1753366675627,1.31214983,118090.0,118080.0,0.1702731]
[1753366676029,1.92778983,118090.0,118080.0,0.1702731]
[1753366676322,1.92778983,118090.0,118080.0,0.59369109]
[1753366676727,1.92778983,118090.0,118080.0,0.1702731]
[1753366676930,1.92778983,118090.0,118080.0,0.170284]
[1753366678542,1.92778983,118090.0,118080.0,0.001]
[1753366679229,2.35951514,118090.0,118080.0,0.001]
[1753366679432,1.93609715,118090.0,118080.0,0.1702841]
[1753366680017,1.92778983,118090.0,118080.0,0.1702841]
[1753366680418,1.31214983,118090.0,118080.0,0.1702841]
[1753366680626,1.14288013,118090.0,118080.0,0.89425209]
[1753366680821,0.67192013,118090.0,118080.0,1.30445209]
[1753366681028,0.39088,118090.0,118080.0,1.30445209]
[1753366681227,0.35948,118090.0,118080.0,1.30445209]
[1753366681538,0.353,118090.0,118080.0,1.30445209]
[1753366682126,0.7513297,118090.0,118080.0,0.94365209]
[1753366682330,0.69525,118090.0,118080.0,0.94365209]
[1753366682729,0.39525,118090.0,118080.0,0.94365209]
[1753366682924,0.053,118090.0,118080.0,1.92001209]
[1753366683331,0.053,118090.0,118080.0,1.30445209]
[1753366683632,0.053,118090.0,118080.0,1.92001209]
[1753366683833,0.053,118090.0,118080.0,1.30445209]
[1753366684139,0.40774,118120.0,118110.0,0.3376011]
[1753366684333,0.44869,118120.0,118110.0,1.30340909]
[1753366684529,0.35694,118120.0,118110.0,1.30340909]
[1753366685335,0.31,118120.0,118110.0,1.30340909]
[1753366686135,0.04694,118130.0,118120.0,0.3086667]
[1753366686336,0.41694,118130.0,118120.0,1.91887469]
[1753366686533,0.54434805,118130.0,118120.0,1.55807469]
[1753366686837,0.56421109,118130.0,118120.0,1.55807469]
[1753366687241,0.51727109,118130.0,118120.0,1.56659903]
[1753366687437,0.04694,118140.0,118130.0,0.1692124]
[1753366687636,0.02986988,118140.0,118130.0,1.30338039]
[1753366687840,0.39986988,118140.0,118130.0,1.30338039]
[1753366688335,0.61600798,118140.0,118130.0,0.8799624]
[1753366688538,0.73784798,118140.0,118130.0,1.92010039]
[1753366688732,0.56864988,118140.0,118130.0,1.92010039]
[1753366689536,0.91131798,118140.0,118130.0,0.8305624]
[1753366689733,0.91131798,118140.0,118130.0,1.50950039]
[1753366690042,0.91131798,118140.0,118130.0,1.0860824]
[1753366690833,0.8914481,118140.0,118130.0,1.0860824]
[1753366691135,1.82290159,118140.0,118130.0,0.1692124]
[1753366691335,1.3994836,118140.0,118130.0,0.3508024]
[1753366691541,1.4004836,118140.0,118130.0,0.4697624]
[1753366691739,1.4004836,118140.0,118130.0,0.5191624]
[1753366692141,1.4004836,118140.0,118130.0,0.4697624]
[1753366692343,1.99693114,118140.0,118130.0,0.4697624]
[1753366692641,1.99593114,118140.0,118130.0,0.4697624]
[1753366692957,1.63713114,118140.0,118130.0,0.4697624]
[1753366693146,1.02081114,118140.0,118130.0,0.4697624]
[1753366693338,0.73842304,118140.0,118130.0,0.94258039]
[1753366693540,0.55630304,118140.0,118130.0,1.30338039]
[1753366693738,0.49936304,118140.0,118130.0,1.30338039]
[1753366693942,0.012,118140.0,118130.0,1.30338039]
[1753366694145,0.002,118140.0,118130.0,1.30338039]
[1753366694335,0.342,118140.0,118130.0,1.30338039]
[1753366694530,0.34,118140.0,118130.0,1.30338039]
[1753366694936,0.341,118140.0,118130.0,1.30338039]
[1753366695235,0.38794,118140.0,118130.0,0.94258039]
[1753366695641,0.56906,118140.0,118130.0,0.94258039]
[1753366695844,0.56906,118140.0,118130.0,1.30338039]
[1753366696043,0.38694,118140.0,118130.0,1.30338039]
[1753366696341,0.01,118140.0,118130.0,1.30338039]
[1753366696543,0.13869,118150.0,118140.0,0.5191481]
[1753366696741,0.35694,118150.0,118140.0,1.1350681]
[1753366696937,0.48380408,118150.0,118140.0,1.1350681]
[1753366697136,0.48380408,118150.0,118140.0,1.4958681]
[1753366697339,0.48380408,118150.0,118140.0,1.91928609]
[1753366697644,0.48580408,118150.0,118140.0,1.91928609]
[1753366698040,0.48680408,118150.0,118140.0,1.91928609]
[1753366698240,0.57855408,118150.0,118140.0,1.91928609]
[1753366698440,0.66892408,118150.0,118140.0,1.91928609]
[1753366698638,0.51689408,118150.0,118140.0,1.91928609]
[1753366698835,0.313,118150.0,118140.0,1.91928609]
[1753366699439,0.35994,118150.0,118140.0,1.91928609]
[1753366700241,0.003,118150.0,118140.0,1.91928609]
[1753366700647,0.333,118150.0,118140.0,1.91928609]
[1753366700850,0.023,118150.0,118140.0,1.91928609]
[1753366701338,0.023,118150.0,118140.0,1.93612007]
[1753366701536,0.023,118150.0,118140.0,2.10540007]
[1753366701748,0.001,118150.0,118140.0,2.10540007]
[1753366702055,0.001,118150.0,118140.0,2.10840007]
[1753366702244,0.371,118150.0,118140.0,2.10840007]
[1753366702642,0.371,118150.0,118140.0,1.93912007]
[1753366702942,0.381,118150.0,118140.0,1.93912007]
[1753366703650,0.001,118150.0,118140.0,1.93912007]
[1753366703851,0.04694,118160.0,118150.0,0.5191338]
[1753366704045,0.37694,118160.0,118150.0,1.30335179]
[1753366704547,0.62273,118160.0,118150.0,0.8799338]
[1753366704738,0.67225,118160.0,118150.0,1.4951738]
[1753366704943,0.55906,118160.0,118150.0,1.4961738]
[1753366705144,0.55906,118160.0,118150.0,1.4971738]
[1753366705345,0.55906,118160.0,118150.0,1.92059179]
[1753366706661,0.40703,118160.0,118150.0,1.92059179]
[1753366706851,0.37694,118160.0,118150.0,1.92059179]
[1753366707649,0.33,118160.0,118150.0,1.92059179]
[1753366709650,0.56129,118160.0,118150.0,0.8819338]
[1753366709844,0.8427295,118160.0,118150.0,1.1362938]
[1753366710050,0.67356,118160.0,118150.0,1.1362938]
[1753366710250,0.8427295,118160.0,118150.0,0.4717338]
[1753366710551,0.8427295,118160.0,118150.0,0.1711838]
[1753366710552,1.62694749,118160.0,118150.0,0.1711838]
[1753366710754,1.75353782,118160.0,118150.0,0.002]
[1753366710951,1.75353782,118160.0,118150.0,0.1701838]
[1753366711549,0.96931983,118160.0,118150.0,0.3786538]
[1753366711747,0.80015033,118160.0,118150.0,0.4386838]
[1753366712057,0.80015033,118160.0,118150.0,0.94405179]
[1753366712261,0.68788033,118160.0,118150.0,0.94405179]
[1753366712475,0.53533033,118160.0,118150.0,1.30485179]
[1753366712651,0.29533033,118160.0,118150.0,1.30485179]
[1753366712850,0.51533033,118160.0,118150.0,1.30485179]
[1753366713260,0.60706033,118160.0,118150.0,1.30485179]
[1753366713956,0.60806033,118160.0,118150.0,1.30485179]
[1753366714161,0.60806033,118160.0,118150.0,0.5206338]
[1753366714357,0.73255033,118160.0,118150.0,0.5206338]
[1753366714553,0.73255033,118160.0,118150.0,0.5216338]
[1753366714554,0.78015033,118160.0,118150.0,0.5216338]
[1753366714756,0.78015033,118160.0,118150.0,0.8824338]
[1753366714955,0.94931983,118160.0,118150.0,0.5206338]
[1753366715151,1.37273782,118160.0,118150.0,0.4386838]
[1753366715355,1.37273782,118160.0,118150.0,0.2171938]
[1753366715562,1.37273782,118160.0,118150.0,0.1711838]
[1753366717164,0.94931983,118160.0,118150.0,0.2921638]
[1753366717361,0.94931983,118160.0,118150.0,0.3786538]
[1753366717955,1.56443983,118160.0,118150.0,0.3786538]
[1753366718155,1.56443983,118160.0,118150.0,0.3776538]
[1753366718556,1.56543983,118160.0,118150.0,0.3776538]
[1753366718763,1.56743983,118160.0,118150.0,0.3776538]
[1753366719065,1.39827033,118160.0,118150.0,0.3776538]
[1753366719264,1.56743983,118160.0,118150.0,0.42306353]
[1753366719456,1.39827033,118160.0,118150.0,0.42306353]
[1753366719858,1.56743983,118160.0,118150.0,0.42306353]
[1753366720558,1.39827033,118160.0,118150.0,0.42306353]
[1753366721265,1.39827033,118160.0,118150.0,0.48309353]
[1753366721562,1.56743983,118160.0,118150.0,0.48309353]
[1753366722563,1.56743983,118160.0,118150.0,0.21459353]
[1753366722757,2.35065782,118160.0,118150.0,0.21459353]
[1753366723064,2.34865782,118160.0,118150.0,0.21459353]
[1753366723361,1.92523983,118160.0,118150.0,0.21459353]
[1753366723553,1.56443983,118160.0,118150.0,0.21459353]
[1753366723963,1.56443983,118160.0,118150.0,0.26160353]
[1753366724160,0.78015033,118160.0,118150.0,0.42306353]
[1753366724354,0.73155033,118160.0,118150.0,0.98846152]
[1753366724565,0.78015033,118160.0,118150.0,0.8804338]
[1753366724856,0.78015033,118160.0,118150.0,1.54108461]
[1753366725255,0.78015033,118160.0,118150.0,1.91889179]
[1753366725655,0.78015033,118160.0,118150.0,1.91989179]
[1753366725968,0.78015033,118160.0,118150.0,1.92089179]
[1753366726564,0.66788033,118160.0,118150.0,1.92089179]
[1753366727063,0.73155033,118160.0,118150.0,1.4974738]
[1753366727260,0.73155033,118160.0,118150.0,1.92089179]
[1753366727563,0.66788033,118160.0,118150.0,1.92089179]
[1753366727865,0.66788033,118160.0,118150.0,1.96651141]
[1753366728356,0.51533033,118160.0,118150.0,1.96651141]
[1753366728557,0.35637,118160.0,118150.0,1.96651651]
[1753366730262,0.35637,118160.0,118150.0,1.92089179]
[1753366730463,0.15637,118160.0,118150.0,1.92089179]
[1753366730862,0.1381,118180.0,118170.0,0.2022652]
[1753366731065,0.1381,118180.0,118170.0,1.96441677]
[1753366731066,0.40637,118180.0,118170.0,1.96441677]
[1753366731363,0.36,118180.0,118170.0,1.96441677]
[1753366731569,0.40637,118180.0,118170.0,1.96441677]
[1753366731765,0.40637,118180.0,118170.0,1.54099878]
[1753366731963,0.40637,118180.0,118170.0,1.97953064]
[1753366732660,0.36,118180.0,118170.0,2.04813843]
[1753366732864,0.04637,118190.0,118180.0,0.2669992]
[1753366733181,0.4681,118190.0,118180.0,1.47627099]
[1753366733359,0.50047,118190.0,118180.0,1.47627099]
[1753366733555,0.67356,118190.0,118180.0,0.692053]
[1753366734270,0.67356,118190.0,118180.0,1.052853]
[1753366734465,0.67556,118190.0,118180.0,1.052853]
[1753366734770,0.61189,118190.0,118180.0,1.47627099]
[1753366736464,0.61189,118190.0,118180.0,1.052853]
[1753366736668,0.61189,118190.0,118180.0,1.47627099]
[1753366736866,0.61189,118190.0,118180.0,1.11547099]
[1753366737366,0.67356,118190.0,118180.0,0.692053]
[1753366737562,0.67456,118190.0,118180.0,0.692053]
[1753366738061,0.67456,118190.0,118180.0,1.052853]
[1753366738669,0.8436866,118190.0,118180.0,0.2570359]
[1753366738862,0.67456,118190.0,118180.0,1.2199459]
[1753366739769,0.8436866,118190.0,118180.0,1.2199459]
[1753366739973,0.8456866,118190.0,118180.0,1.2199459]
[1753366740476,0.8456866,118190.0,118180.0,1.1708259]
[1753366740671,0.8456866,118190.0,118180.0,0.5560659]
[1753366740878,1.26910459,118190.0,118180.0,0.872643]
[1753366741068,1.26910459,118190.0,118180.0,1.033943]
[1753366741394,1.4603666,118190.0,118180.0,0.510453]
[1753366741572,1.88378459,118190.0,118180.0,0.480423]
[1753366741778,0.5156709,118180.0,118170.0,0.2579765]
[1753366741977,1.61988889,118180.0,118170.0,0.8261165]
[1753366742180,0.8356709,118180.0,118170.0,0.2114365]
[1753366742477,0.8356709,118180.0,118170.0,0.5104665]
[1753366743176,0.66653,118180.0,118170.0,0.8712665]
[1753366743473,0.8356709,118180.0,118170.0,0.5104665]
[1753366746682,1.38642411,118180.0,118170.0,0.2114365]
[1753366747273,1.74722411,118180.0,118170.0,0.1691497]
[1753366749084,0.5156852,118170.0,118160.0,0.2537455]
[1753366749282,2.23450319,118170.0,118160.0,0.2537455]
[1753366749482,2.36060468,118170.0,118160.0,0.2537455]
[1753366750181,1.93718669,118170.0,118160.0,0.5527755]
[1753366750381,1.94018669,118170.0,118160.0,0.5537755]
[1753366750780,1.94218669,118170.0,118160.0,0.5537755]
[1753366750981,1.58138669,118170.0,118160.0,0.5537755]
[1753366751281,1.94218669,118170.0,118160.0,0.5537755]
[1753366751482,1.94118669,118170.0,118160.0,0.5537755]
[1753366751873,1.94118669,118170.0,118160.0,0.5527755]
[1753366752081,1.94018669,118170.0,118160.0,0.5527755]
[1753366752282,1.77103149,118170.0,118160.0,0.5527755]
[1753366752481,0.79563149,118170.0,118160.0,0.6018955]
[1753366752698,0.96478669,118170.0,118160.0,0.5527755]
[1753366752877,1.32558669,118170.0,118160.0,0.5527755]
[1753366753184,1.68664458,118170.0,118160.0,0.5527755]
[1753366754288,0.5157138,118150.0,118140.0,0.01683398]
[1753366754581,2.66068139,118150.0,118140.0,0.01683398]
[1753366754977,2.66068139,118150.0,118140.0,0.18603208]
[1753366755177,2.72295466,118150.0,118140.0,0.18603208]
[1753366755577,2.72295466,118150.0,118140.0,0.01683398]
[1753366756084,2.72295466,118150.0,118140.0,0.18603218]
[1753366757282,2.2996235,118150.0,118140.0,0.18703218]
[1753366757484,1.9388235,118150.0,118140.0,0.18803218]
[1753366757788,0.7942797,118150.0,118140.0,0.95951334]
[1753366757981,0.36955,118150.0,118140.0,1.31931334]
[1753366758286,0.37155,118150.0,118140.0,1.31831334]
[1753366758680,0.46921,118150.0,118140.0,1.31931334]
[1753366759282,0.37455,118150.0,118140.0,1.31931334]
[1753366759684,0.11255,118150.0,118140.0,1.31931334]
[1753366759884,0.41255,118150.0,118140.0,1.31931334]
[1753366760089,0.10255,118150.0,118140.0,1.32031334]
[1753366760285,0.053,118150.0,118140.0,1.32031334]
[1753366760682,0.04955,118160.0,118150.0,0.1691838]
[1753366760883,0.08,118160.0,118150.0,2.40503762]
[1753366761089,0.15833,118180.0,118170.0,0.5173052]
[1753366761090,0.14421,118180.0,118170.0,0.5173052]
[1753366761389,0.09,118180.0,118170.0,1.91591636]
[1753366761782,0.14421,118190.0,118180.0,0.5172909]
[1753366761986,0.50644,118190.0,118180.0,1.30142206]
[1753366762291,0.63395301,118190.0,118180.0,1.30142206]
[1753366762485,0.63395301,118190.0,118180.0,0.8780909]
[1753366762792,0.75819301,118190.0,118180.0,1.30142206]
[1753366763286,0.75819301,118190.0,118180.0,0.8780909]
[1753366763493,0.75819301,118190.0,118180.0,1.30142206]
[1753366763790,0.92731961,118190.0,118180.0,1.30142206]
[1753366763990,0.92731961,118190.0,118180.0,0.8780909]
[1753366764193,0.92831961,118190.0,118180.0,0.8780909]
[1753366764397,0.97416961,118190.0,118180.0,0.8289709]
[1753366764886,0.80504301,118190.0,118180.0,0.8289709]
[1753366765095,0.80504301,118190.0,118180.0,0.8780909]
[1753366765289,0.80504301,118190.0,118180.0,1.30142206]
[1753366765290,0.56801,118190.0,118180.0,1.30142206]
[1753366765488,0.50744,118190.0,118180.0,1.30242206]
[1753366765889,0.63168,118190.0,118180.0,1.30242206]
[1753366766091,0.63168,118190.0,118180.0,0.8790909]
[1753366766297,0.67753,118190.0,118180.0,0.8790909]
[1753366766694,0.8466566,118190.0,118180.0,0.8790909]
[1753366767104,0.3673895,118160.0,118150.0,0.06074745]
[1753366767290,0.1691838,118150.0,118140.0,0.07758143]
[1753366767598,1.63920897,118150.0,118140.0,0.077521]
[1753366767989,1.63920897,118150.0,118140.0,0.01683398]
[1753366769800,1.21587781,118150.0,118140.0,0.01683398]
[1753366769998,1.63920897,118150.0,118140.0,0.01683398]
[1753366770799,1.63920897,118150.0,118140.0,0.18603208]
[1753366771301,1.64020897,118150.0,118140.0,0.01683398]
[1753366771504,0.3095281,118140.0,118130.0,0.3272169]
[1753366771698,1.65187926,118140.0,118130.0,0.9415369]
[1753366773503,1.2285481,118140.0,118130.0,0.9415369]
[1753366773703,1.65187926,118140.0,118130.0,0.9415369]
[1753366773900,1.48268116,118140.0,118130.0,0.9415369]
[1753366774107,1.05935,118140.0,118130.0,0.9897669]
[1753366774407,1.06035,118140.0,118130.0,0.9897669]
[1753366774605,1.06035,118140.0,118130.0,1.0205769]
[1753366775205,1.06035,118140.0,118130.0,1.0679969]
[1753366775606,1.06035,118140.0,118130.0,1.0205769]
[1753366776802,1.2295481,118140.0,118130.0,1.0205769]
[1753366778010,1.06035,118140.0,118130.0,1.0205769]
[1753366778411,1.2295481,118140.0,118130.0,1.0205769]
[1753366778802,1.06035,118140.0,118130.0,1.0205769]
[1753366779203,0.031,118140.0,118130.0,1.93407806]
[1753366779505,0.04849,118170.0,118160.0,0.5779001]
[1753366779707,0.36849,118170.0,118160.0,1.61551126]
[1753366779904,0.15455,118170.0,118160.0,1.61551126]
[1753366780198,0.46455,118170.0,118160.0,1.61551126]
[1753366780404,0.46455,118170.0,118160.0,1.1921801]
[1753366780613,0.61996,118170.0,118160.0,1.1921801]
[1753366780812,0.31996,118170.0,118160.0,1.1921801]
[1753366781013,0.07849,118170.0,118160.0,1.61551126]
[1753366781409,0.03,118170.0,118160.0,1.97831126]
[1753366781813,0.03,118170.0,118160.0,1.98031126]
[1753366782217,0.03,118170.0,118160.0,1.5569801]
[1753366782414,0.03,118170.0,118160.0,1.98031126]
[1753366782815,0.07849,118170.0,118160.0,1.98031126]
[1753366783318,0.07849,118170.0,118160.0,1.98880003]
[1753366784813,0.03,118170.0,118160.0,1.98880003]
[1753366785416,1.78873639,118170.0,118160.0,0.004]
[1753366787224,1.78873639,118170.0,118160.0,0.61616]
[1753366787422,1.79173639,118170.0,118160.0,0.61416]
[1753366788320,0.4591438,118150.0,118140.0,0.5779435]
[1753366788628,0.9385338,118150.0,118140.0,1.1921035]
[1753366789730,0.76935,118150.0,118140.0,1.1931035]
[1753366790526,0.9385338,118150.0,118140.0,0.5799435]
[1753366790728,0.9385338,118150.0,118140.0,1.1941035]
[1753366791426,1.2285338,118150.0,118140.0,1.1941035]
[1753366791930,1.2285338,118150.0,118140.0,1.104384]
[1753366793331,0.9085338,118150.0,118140.0,1.104344]
[1753366793533,0.73935,118150.0,118140.0,1.104344]
[1753366793742,0.73935,118150.0,118140.0,1.151764]